[Event "Early Titled Tuesday Blitz | February 8 2022"]
[White "Rostovtsev, Dmitry"]
[Black "Stanisz, Patryk"]
[WhiteFideId "34278320"]
[BlackFideId "1123106"]
[WhiteElo "2218"]
[BlackElo "1876"]
[Result "1-0"]
[Round "06"]
[TimeControl "180+1"]
[Date "2022.02.08"]
[WhiteClock "0:02:37"]
[BlackClock "0:00:01"]

1. e4 {[%clk 0:02:57]}  c5 {[%clk 0:02:59]} 2. Nf3 {[%clk 0:02:54]}  Nc6 {[%clk 0:02:58]} 3. Bb5 {[%clk 0:02:54]}  g6 {[%clk 0:02:58]} 4. O-O {[%clk 0:02:53]}  Bg7 {[%clk 0:02:57]} 5. c3 {[%clk 0:02:54]}  Nf6 {[%clk 0:02:57]} 6. Re1 {[%clk 0:02:54]}  O-O {[%clk 0:02:56]} 7. d4 {[%clk 0:02:54]}  d5 {[%clk 0:02:52]} 8. e5 {[%clk 0:02:53]}  Ne4 {[%clk 0:02:52]} 9. Bxc6 {[%clk 0:02:53]}  bxc6 {[%clk 0:02:52]} 10. Be3 {[%clk 0:02:54]}  cxd4 {[%clk 0:02:51]} 11. cxd4 {[%clk 0:02:55]}  Qb6 {[%clk 0:02:42]} 12. Qc1 {[%clk 0:02:55]}  Re8 {[%clk 0:02:30]} 13. Nbd2 {[%clk 0:02:52]}  Bf5 {[%clk 0:02:28]} 14. Nxe4 {[%clk 0:02:50]}  Bxe4 {[%clk 0:02:27]} 15. Nd2 {[%clk 0:02:51]}  Bd3 {[%clk 0:02:14]} 16. Qc3 {[%clk 0:02:50]}  Ba6 {[%clk 0:02:11]} 17. Rec1 {[%clk 0:02:50]}  Rec8 {[%clk 0:02:10]} 18. Nb3 {[%clk 0:02:51]}  e6 {[%clk 0:02:08]} 19. Nc5 {[%clk 0:02:51]}  Rc7 {[%clk 0:02:02]} 20. b3 {[%clk 0:02:51]}  Bf8 {[%clk 0:02:00]} 21. Qd2 {[%clk 0:02:51]}  Bc8 {[%clk 0:01:57]} 22. Bh6 {[%clk 0:02:50]}  Re7 {[%clk 0:01:35]} 23. Bxf8 {[%clk 0:02:49]}  Kxf8 {[%clk 0:01:35]} 24. Qh6+ {[%clk 0:02:50]}  Kg8 {[%clk 0:01:36]} 25. Rc3 {[%clk 0:02:49]}  f5 {[%clk 0:01:17]} 26. exf6 {[%clk 0:02:48]}  Rf7 {[%clk 0:01:18]} 27. Rh3 {[%clk 0:02:41]}  e5 {[%clk 0:01:14]} 28. Re3 {[%clk 0:02:39]}  Bf5 {[%clk 0:00:48]} 29. Rxe5 {[%clk 0:02:38]}  Raf8 {[%clk 0:00:31]} 30. Rae1 {[%clk 0:02:38]}  Rxf6 {[%clk 0:00:31]} 31. Re7 {[%clk 0:02:38]}  R8f7 {[%clk 0:00:26]} 32. Rxf7 {[%clk 0:02:37]}  Kxf7 {[%clk 0:00:15]} 33. Qxh7+ {[%clk 0:02:32]}  Kf8 {[%clk 0:00:15]} 34. Qh8+ {[%clk 0:02:33]}  Kf7 {[%clk 0:00:15]} 35. Qe8+ {[%clk 0:02:34]}  Kg7 {[%clk 0:00:16]} 36. Re7+ {[%clk 0:02:35]}  Kh6 {[%clk 0:00:12]} 37. Qh8+ {[%clk 0:02:35]}  Kg5 {[%clk 0:00:12]} 38. f4+ {[%clk 0:02:35]}  Kxf4 {[%clk 0:00:05]} 39. Qh4+ {[%clk 0:02:35]}  Bg4 {[%clk 0:00:05]} 40. Qxf6+ {[%clk 0:02:32]}  Bf5 {[%clk 0:00:05]} 41. Qe5+ {[%clk 0:02:33]}  Kg5 {[%clk 0:00:05]} 42. Qg3+ {[%clk 0:02:34]}  Kf6 {[%clk 0:00:05]} 43. Rh7 {[%clk 0:02:35]}  Qb4 {[%clk 0:00:03]} 44. Qe5+ {[%clk 0:02:35]}  Kg5 {[%clk 0:00:01]} 45. Ne6+ {[%clk 0:02:36]}  Kg4 {[%clk 0:00:01]} 46. Qf4# {[%clk 0:02:37]} 1-0


[Site "https://www.chess.com"]

[Event "Early Titled Tuesday Blitz | February 8 2022"]
[White "Sadhwani, Raunak"]
[Black "Dobrov, Vladimir"]
[WhiteFideId "35093487"]
[BlackFideId "4136594"]
[WhiteElo "2616"]
[BlackElo "2614"]
[Result "0-1"]
[Round "06"]
[TimeControl "180+1"]
[Date "2022.02.08"]
[WhiteClock "0:00:05"]
[BlackClock "0:00:21"]

1. d4 {[%clk 0:03:00]}  Nf6 {[%clk 0:02:59]} 2. Nf3 {[%clk 0:03:01]}  e6 {[%clk 0:03:00]} 3. Bf4 {[%clk 0:03:01]}  c5 {[%clk 0:03:00]} 4. e3 {[%clk 0:03:01]}  Nc6 {[%clk 0:03:01]} 5. Nbd2 {[%clk 0:02:56]}  d5 {[%clk 0:03:00]} 6. c3 {[%clk 0:02:56]}  Nh5 {[%clk 0:03:01]} 7. Bg5 {[%clk 0:02:54]}  Qb6 {[%clk 0:03:01]} 8. Rb1 {[%clk 0:02:50]}  h6 {[%clk 0:03:01]} 9. Bh4 {[%clk 0:02:50]}  g5 {[%clk 0:03:02]} 10. Bg3 {[%clk 0:02:50]}  Nxg3 {[%clk 0:03:01]} 11. hxg3 {[%clk 0:02:51]}  Bg7 {[%clk 0:03:01]} 12. Be2 {[%clk 0:02:48]}  Bd7 {[%clk 0:03:01]} 13. O-O {[%clk 0:02:49]}  g4 {[%clk 0:02:59]} 14. Ne1 {[%clk 0:02:46]}  h5 {[%clk 0:02:59]} 15. Nd3 {[%clk 0:02:44]}  cxd4 {[%clk 0:02:51]} 16. cxd4 {[%clk 0:02:45]}  Qc7 {[%clk 0:02:52]} 17. b4 {[%clk 0:02:44]}  Qd6 {[%clk 0:02:50]} 18. b5 {[%clk 0:02:43]}  Ne7 {[%clk 0:02:50]} 19. Nc5 {[%clk 0:02:34]}  b6 {[%clk 0:02:46]} 20. Nxd7 {[%clk 0:02:33]}  Qxd7 {[%clk 0:02:43]} 21. Bd3 {[%clk 0:02:28]}  f5 {[%clk 0:02:40]} 22. Qe2 {[%clk 0:02:20]}  Kf7 {[%clk 0:02:31]} 23. Rfc1 {[%clk 0:02:20]}  Qd6 {[%clk 0:02:25]} 24. Nb3 {[%clk 0:02:05]}  h4 {[%clk 0:02:15]} 25. gxh4 {[%clk 0:02:05]}  Rxh4 {[%clk 0:02:15]} 26. g3 {[%clk 0:02:05]}  Rh3 {[%clk 0:01:51]} 27. Kg2 {[%clk 0:02:04]}  e5 {[%clk 0:01:19]} 28. dxe5 {[%clk 0:01:43]}  Bxe5 {[%clk 0:01:19]} 29. Rh1 {[%clk 0:01:44]}  Bxg3 {[%clk 0:01:20]} 30. Rxh3 {[%clk 0:01:44]}  gxh3+ {[%clk 0:01:20]} 31. Kh1 {[%clk 0:01:45]}  Be5 {[%clk 0:01:19]} 32. Rg1 {[%clk 0:01:40]}  Rh8 {[%clk 0:01:14]} 33. Nd2 {[%clk 0:01:24]}  h2 {[%clk 0:01:12]} 34. Rg2 {[%clk 0:01:24]}  Qb4 {[%clk 0:01:10]} 35. Nf3 {[%clk 0:01:18]}  Bf6 {[%clk 0:01:10]} 36. Rxh2 {[%clk 0:01:12]}  Rxh2+ {[%clk 0:01:10]} 37. Kxh2 {[%clk 0:01:09]}  Qg4 {[%clk 0:01:10]} 38. Ng1 {[%clk 0:00:56]}  Qg6 {[%clk 0:01:10]} 39. Qf3 {[%clk 0:00:52]}  Be5+ {[%clk 0:01:10]} 40. Kh1 {[%clk 0:00:52]}  Qh6+ {[%clk 0:01:02]} 41. Kg2 {[%clk 0:00:52]}  Ke6 {[%clk 0:01:00]} 42. Ne2 {[%clk 0:00:51]}  Qh2+ {[%clk 0:00:58]} 43. Kf1 {[%clk 0:00:51]}  Qh4 {[%clk 0:00:58]} 44. Qg2 {[%clk 0:00:41]}  Qa4 {[%clk 0:00:56]} 45. Ke1 {[%clk 0:00:13]}  Qa3 {[%clk 0:00:48]} 46. Bc2 {[%clk 0:00:10]}  Qxa2 {[%clk 0:00:41]} 47. Kd1 {[%clk 0:00:09]}  Qa1+ {[%clk 0:00:37]} 48. Kd2 {[%clk 0:00:09]}  Qb2 {[%clk 0:00:38]} 49. Qg5 {[%clk 0:00:09]}  Qxb5 {[%clk 0:00:36]} 50. Qh6+ {[%clk 0:00:09]}  Kd7 {[%clk 0:00:36]} 51. Qg5 {[%clk 0:00:09]}  Qb4+ {[%clk 0:00:36]} 52. Kd1 {[%clk 0:00:10]}  Qg4 {[%clk 0:00:32]} 53. Qh6 {[%clk 0:00:06]}  Kc7 {[%clk 0:00:22]} 54. f4 {[%clk 0:00:06]}  Bd6 {[%clk 0:00:21]} 55. Kd2 {[%clk 0:00:04]}  Qg2 {[%clk 0:00:21]} 56. Kd3 {[%clk 0:00:04]}  Qe4+ {[%clk 0:00:21]} 57. Kd2 {[%clk 0:00:04]}  Bb4+ {[%clk 0:00:21]} 58. Kd1 {[%clk 0:00:05]}  Qxe3 {[%clk 0:00:21]} 0-1


[Site "https://www.chess.com"]

[Event "Early Titled Tuesday Blitz | February 8 2022"]
[White "Saim, Mohamed Ilias"]
[Black "Yonal, Timur"]
[WhiteFideId "7900465"]
[BlackFideId "44115725"]
[WhiteElo "2006"]
[BlackElo "1762"]
[Result "0-1"]
[Round "06"]
[TimeControl "180+1"]
[Date "2022.02.08"]
[WhiteClock "0:00:01"]
[BlackClock "0:00:04"]

1. d4 {[%clk 0:03:00]}  d5 {[%clk 0:02:55]} 2. Nf3 {[%clk 0:02:57]}  e6 {[%clk 0:02:38]} 3. e3 {[%clk 0:02:55]}  Nf6 {[%clk 0:02:35]} 4. b3 {[%clk 0:02:53]}  Be7 {[%clk 0:02:34]} 5. Bb2 {[%clk 0:02:52]}  O-O {[%clk 0:02:33]} 6. Bd3 {[%clk 0:02:51]}  c5 {[%clk 0:02:31]} 7. Nbd2 {[%clk 0:02:49]}  Nc6 {[%clk 0:02:29]} 8. a3 {[%clk 0:02:48]}  cxd4 {[%clk 0:02:04]} 9. exd4 {[%clk 0:02:47]}  Qc7 {[%clk 0:02:00]} 10. Ne5 {[%clk 0:02:32]}  Bd6 {[%clk 0:01:45]} 11. f4 {[%clk 0:02:30]}  a6 {[%clk 0:01:02]} 12. O-O {[%clk 0:02:28]}  b5 {[%clk 0:00:56]} 13. Rf3 {[%clk 0:02:07]}  Qb6 {[%clk 0:00:55]} 14. c3 {[%clk 0:01:46]}  Bxe5 {[%clk 0:00:48]} 15. fxe5 {[%clk 0:01:32]}  Nxe5 {[%clk 0:00:48]} 16. Rxf6 {[%clk 0:01:24]}  Nxd3 {[%clk 0:00:28]} 17. Rf3 {[%clk 0:01:00]}  Nxb2 {[%clk 0:00:27]} 18. Qc2 {[%clk 0:00:58]}  e5 {[%clk 0:00:23]} 19. Qxb2 {[%clk 0:00:52]}  e4 {[%clk 0:00:20]} 20. Rg3 {[%clk 0:00:44]}  Qh6 {[%clk 0:00:17]} 21. Nf1 {[%clk 0:00:32]}  f5 {[%clk 0:00:15]} 22. Rh3 {[%clk 0:00:26]}  Qg6 {[%clk 0:00:13]} 23. Rg3 {[%clk 0:00:19]}  Qf6 {[%clk 0:00:10]} 24. Re3 {[%clk 0:00:13]}  f4 {[%clk 0:00:10]} 25. Ree1 {[%clk 0:00:11]}  Qg6 {[%clk 0:00:09]} 26. c4 {[%clk 0:00:08]}  f3 {[%clk 0:00:08]} 27. cxd5 {[%clk 0:00:06]}  f2+ {[%clk 0:00:08]} 28. Qxf2 {[%clk 0:00:05]}  Rxf2 {[%clk 0:00:07]} 29. Kxf2 {[%clk 0:00:06]}  Bb7 {[%clk 0:00:05]} 30. Ne3 {[%clk 0:00:05]}  Rd8 {[%clk 0:00:05]} 31. Rac1 {[%clk 0:00:04]}  Qf6+ {[%clk 0:00:05]} 32. Kg1 {[%clk 0:00:03]}  Qxd4 {[%clk 0:00:04]} 33. Kh1 {[%clk 0:00:01]}  Bxd5 {[%clk 0:00:04]} 0-1


[Site "https://www.chess.com"]

[Event "Early Titled Tuesday Blitz | February 8 2022"]
[White "Sarkar, Justin"]
[Black "Papp, Petra"]
[WhiteFideId "2010011"]
[BlackFideId "739049"]
[WhiteElo "2038"]
[BlackElo "2259"]
[Result "0-1"]
[Round "06"]
[TimeControl "180+1"]
[Date "2022.02.08"]
[WhiteClock "0:00:01"]
[BlackClock "0:00:44"]

1. d4 {[%clk 0:02:54]}  d6 {[%clk 0:02:59]} 2. e4 {[%clk 0:02:44]}  Nf6 {[%clk 0:02:58]} 3. Nc3 {[%clk 0:02:43]}  e5 {[%clk 0:02:58]} 4. Nge2 {[%clk 0:02:40]}  g6 {[%clk 0:02:53]} 5. f3 {[%clk 0:02:35]}  Bg7 {[%clk 0:02:53]} 6. Be3 {[%clk 0:02:32]}  O-O {[%clk 0:02:53]} 7. Qd2 {[%clk 0:02:31]}  Nc6 {[%clk 0:02:52]} 8. O-O-O {[%clk 0:02:26]}  a6 {[%clk 0:02:49]} 9. d5 {[%clk 0:02:17]}  Ne7 {[%clk 0:02:47]} 10. g4 {[%clk 0:02:17]}  b5 {[%clk 0:02:47]} 11. Ng3 {[%clk 0:02:09]}  b4 {[%clk 0:02:32]} 12. Nce2 {[%clk 0:02:06]}  a5 {[%clk 0:02:31]} 13. h4 {[%clk 0:02:05]}  a4 {[%clk 0:02:05]} 14. Qxb4 {[%clk 0:01:57]}  Bd7 {[%clk 0:01:54]} 15. h5 {[%clk 0:01:51]}  Rb8 {[%clk 0:01:52]} 16. Qa3 {[%clk 0:01:39]}  Qc8 {[%clk 0:01:48]} 17. hxg6 {[%clk 0:01:33]}  fxg6 {[%clk 0:01:47]} 18. c4 {[%clk 0:01:14]}  Bxg4 {[%clk 0:01:33]} 19. fxg4 {[%clk 0:01:11]}  Nxg4 {[%clk 0:01:32]} 20. Bh3 {[%clk 0:01:09]}  Rf3 {[%clk 0:01:20]} 21. Rdf1 {[%clk 0:00:25]}  Rxe3 {[%clk 0:01:14]} 22. Bxg4 {[%clk 0:00:21]}  Rxa3 {[%clk 0:01:06]} 23. Bxc8 {[%clk 0:00:17]}  Rxa2 {[%clk 0:01:03]} 24. Be6+ {[%clk 0:00:17]}  Kh8 {[%clk 0:01:03]} 25. Nc3 {[%clk 0:00:04]}  Raxb2 {[%clk 0:01:00]} 26. Rf7 {[%clk 0:00:02]}  Ng8 {[%clk 0:00:52]} 27. Nb5 {[%clk 0:00:02]}  Rb3 {[%clk 0:00:50]} 28. Kc2 {[%clk 0:00:01]}  Rxg3 {[%clk 0:00:50]} 29. Ra1 {[%clk 0:00:01]}  Nh6 {[%clk 0:00:48]} 30. Rxa4 {[%clk 0:00:01]}  Nxf7 {[%clk 0:00:48]} 31. Bxf7 {[%clk 0:00:01]}  h5 {[%clk 0:00:46]} 32. Nxc7 {[%clk 0:00:01]}  h4 {[%clk 0:00:45]} 33. Nb5 {[%clk 0:00:01]}  h3 {[%clk 0:00:46]} 34. Ra1 {[%clk 0:00:01]}  Bh6 {[%clk 0:00:44]} 0-1


[Site "https://www.chess.com"]

[Event "Early Titled Tuesday Blitz | February 8 2022"]
[White "Schut, Han"]
[Black "Sokolovsky, Yahli"]
[WhiteFideId "1005561"]
[BlackFideId "2820242"]
[WhiteElo "2057"]
[BlackElo "1770"]
[Result "0-1"]
[Round "06"]
[TimeControl "180+1"]
[Date "2022.02.08"]
[WhiteClock "0:00:10"]
[BlackClock "0:00:07"]

1. e4 {[%clk 0:03:00]}  g6 {[%clk 0:03:00]} 2. d4 {[%clk 0:03:00]}  Bg7 {[%clk 0:03:00]} 3. Nc3 {[%clk 0:03:01]}  d6 {[%clk 0:03:01]} 4. f4 {[%clk 0:03:01]}  a6 {[%clk 0:03:01]} 5. Nf3 {[%clk 0:03:01]}  b5 {[%clk 0:03:02]} 6. Bd3 {[%clk 0:02:59]}  Bb7 {[%clk 0:03:03]} 7. e5 {[%clk 0:03:00]}  dxe5 {[%clk 0:02:57]} 8. dxe5 {[%clk 0:02:52]}  e6 {[%clk 0:02:50]} 9. Qe2 {[%clk 0:02:51]}  Ne7 {[%clk 0:02:44]} 10. O-O {[%clk 0:02:36]}  Nd5 {[%clk 0:02:28]} 11. Ne4 {[%clk 0:02:28]}  Nd7 {[%clk 0:02:28]} 12. c3 {[%clk 0:02:19]}  Qe7 {[%clk 0:02:26]} 13. a4 {[%clk 0:02:14]}  bxa4 {[%clk 0:02:12]} 14. Rxa4 {[%clk 0:02:14]}  Nc5 {[%clk 0:02:13]} 15. Nxc5 {[%clk 0:02:06]}  Qxc5+ {[%clk 0:02:13]} 16. Kh1 {[%clk 0:02:06]}  a5 {[%clk 0:01:55]} 17. Be4 {[%clk 0:01:43]}  O-O {[%clk 0:01:33]} 18. c4 {[%clk 0:01:40]}  Ba6 {[%clk 0:01:34]} 19. Bd2 {[%clk 0:01:05]}  Rab8 {[%clk 0:00:51]} 20. Bxa5 {[%clk 0:00:45]}  Nxf4 {[%clk 0:00:44]} 21. Qd2 {[%clk 0:00:39]}  Nd5 {[%clk 0:00:25]} 22. Rc1 {[%clk 0:00:35]}  Nb6 {[%clk 0:00:14]} 23. Bb4 {[%clk 0:00:31]}  Nxa4 {[%clk 0:00:15]} 24. Bxc5 {[%clk 0:00:31]}  Nxc5 {[%clk 0:00:15]} 25. Bc6 {[%clk 0:00:25]}  Nb3 {[%clk 0:00:13]} 26. Qc2 {[%clk 0:00:25]}  Nxc1 {[%clk 0:00:14]} 27. Qxc1 {[%clk 0:00:26]}  Bb7 {[%clk 0:00:08]} 28. Bb5 {[%clk 0:00:23]}  Bxf3 {[%clk 0:00:05]} 29. gxf3 {[%clk 0:00:23]}  Bxe5 {[%clk 0:00:06]} 30. b4 {[%clk 0:00:22]}  c6 {[%clk 0:00:06]} 31. Bxc6 {[%clk 0:00:18]}  Rxb4 {[%clk 0:00:07]} 32. Be4 {[%clk 0:00:16]}  Rfb8 {[%clk 0:00:06]} 33. c5 {[%clk 0:00:16]}  Rb2 {[%clk 0:00:04]} 34. c6 {[%clk 0:00:14]}  Rxh2+ {[%clk 0:00:05]} 35. Kg1 {[%clk 0:00:14]}  Bc7 {[%clk 0:00:06]} 36. Qd1 {[%clk 0:00:11]}  Rbb2 {[%clk 0:00:06]} 37. Qd7 {[%clk 0:00:10]}  Bb6+ {[%clk 0:00:07]} 38. Kf1 {[%clk 0:00:10]}  Rh1# {[%clk 0:00:07]} 0-1


[Site "https://www.chess.com"]

[Event "Early Titled Tuesday Blitz | February 8 2022"]
[White "Shukhman, Anna"]
[Black "Roebers, Jan"]
[WhiteFideId "54180058"]
[BlackFideId "1007815"]
[WhiteElo "1628"]
[BlackElo "2129"]
[Result "1-0"]
[Round "06"]
[TimeControl "180+1"]
[Date "2022.02.08"]
[WhiteClock "0:00:22"]
[BlackClock "0:00:04"]

1. e4 {[%clk 0:03:00]}  e5 {[%clk 0:02:53]} 2. Nf3 {[%clk 0:03:00]}  Nc6 {[%clk 0:02:52]} 3. Bb5 {[%clk 0:02:59]}  a6 {[%clk 0:02:52]} 4. Ba4 {[%clk 0:02:58]}  Nf6 {[%clk 0:02:52]} 5. O-O {[%clk 0:02:57]}  Be7 {[%clk 0:02:52]} 6. Re1 {[%clk 0:02:56]}  b5 {[%clk 0:02:52]} 7. Bb3 {[%clk 0:02:55]}  O-O {[%clk 0:02:52]} 8. c3 {[%clk 0:02:52]}  d5 {[%clk 0:02:51]} 9. exd5 {[%clk 0:02:52]}  Nxd5 {[%clk 0:02:51]} 10. h3 {[%clk 0:02:46]}  Bb7 {[%clk 0:02:39]} 11. d4 {[%clk 0:02:44]}  exd4 {[%clk 0:02:35]} 12. cxd4 {[%clk 0:02:43]}  Bb4 {[%clk 0:02:30]} 13. Nc3 {[%clk 0:02:27]}  Nxc3 {[%clk 0:02:23]} 14. bxc3 {[%clk 0:02:27]}  Bxc3 {[%clk 0:02:23]} 15. Bg5 {[%clk 0:02:24]}  Qc8 {[%clk 0:01:53]} 16. d5 {[%clk 0:02:22]}  Na5 {[%clk 0:01:52]} 17. Be7 {[%clk 0:01:54]}  Nxb3 {[%clk 0:01:34]} 18. Qxb3 {[%clk 0:01:48]}  Bxa1 {[%clk 0:01:27]} 19. Bxf8 {[%clk 0:01:45]}  Qxf8 {[%clk 0:01:22]} 20. Rxa1 {[%clk 0:01:44]}  Qd6 {[%clk 0:01:21]} 21. Rd1 {[%clk 0:01:41]}  Re8 {[%clk 0:01:16]} 22. a4 {[%clk 0:01:30]}  b4 {[%clk 0:01:10]} 23. a5 {[%clk 0:01:27]}  h6 {[%clk 0:01:05]} 24. Rd4 {[%clk 0:01:17]}  Rd8 {[%clk 0:00:47]} 25. Rxb4 {[%clk 0:00:48]}  Bxd5 {[%clk 0:00:45]} 26. Qc3 {[%clk 0:00:47]}  Bxf3 {[%clk 0:00:43]} 27. gxf3 {[%clk 0:00:47]}  Qg6+ {[%clk 0:00:40]} 28. Rg4 {[%clk 0:00:47]}  Qb1+ {[%clk 0:00:33]} 29. Kg2 {[%clk 0:00:46]}  g6 {[%clk 0:00:31]} 30. Qxc7 {[%clk 0:00:33]}  Qd3 {[%clk 0:00:28]} 31. Rf4 {[%clk 0:00:29]}  Qd7 {[%clk 0:00:25]} 32. Qxd7 {[%clk 0:00:29]}  Rxd7 {[%clk 0:00:25]} 33. Rf6 {[%clk 0:00:28]}  Ra7 {[%clk 0:00:24]} 34. Kg3 {[%clk 0:00:27]}  Kg7 {[%clk 0:00:24]} 35. Rb6 {[%clk 0:00:27]}  f5 {[%clk 0:00:24]} 36. Kf4 {[%clk 0:00:27]}  Rc7 {[%clk 0:00:17]} 37. Rxa6 {[%clk 0:00:26]}  Rc4+ {[%clk 0:00:16]} 38. Ke5 {[%clk 0:00:26]}  Rb4 {[%clk 0:00:11]} 39. Ra7+ {[%clk 0:00:25]}  Kh8 {[%clk 0:00:04]} 40. a6 {[%clk 0:00:22]} 1-0


[Site "https://www.chess.com"]

[Event "Early Titled Tuesday Blitz | February 8 2022"]
[White "Silich, Yahor"]
[Black "Rytenko, Vsevolod"]
[WhiteFideId "13513656"]
[BlackFideId "14133040"]
[WhiteElo "2101"]
[BlackElo "2144"]
[Result "1-0"]
[Round "06"]
[TimeControl "180+1"]
[Date "2022.02.08"]
[WhiteClock "0:00:03"]
[BlackClock "0:00:02"]

1. e4 {[%clk 0:02:55]}  e6 {[%clk 0:03:00]} 2. d4 {[%clk 0:02:54]}  d5 {[%clk 0:03:00]} 3. Nc3 {[%clk 0:02:54]}  Bb4 {[%clk 0:03:00]} 4. e5 {[%clk 0:02:54]}  Ne7 {[%clk 0:03:00]} 5. a3 {[%clk 0:02:53]}  Bxc3+ {[%clk 0:03:00]} 6. bxc3 {[%clk 0:02:54]}  b6 {[%clk 0:03:01]} 7. Nh3 {[%clk 0:02:53]}  h6 {[%clk 0:02:49]} 8. Nf4 {[%clk 0:02:52]}  c5 {[%clk 0:02:41]} 9. Nh5 {[%clk 0:02:51]}  Rg8 {[%clk 0:02:32]} 10. Bb5+ {[%clk 0:02:37]}  Bd7 {[%clk 0:02:30]} 11. Bd3 {[%clk 0:02:38]}  Nf5 {[%clk 0:02:15]} 12. O-O {[%clk 0:02:25]}  cxd4 {[%clk 0:01:54]} 13. cxd4 {[%clk 0:02:25]}  Qh4 {[%clk 0:01:54]} 14. c3 {[%clk 0:02:15]}  Nc6 {[%clk 0:01:47]} 15. g3 {[%clk 0:02:12]}  Qd8 {[%clk 0:01:31]} 16. Qf3 {[%clk 0:01:50]}  Qc7 {[%clk 0:01:20]} 17. a4 {[%clk 0:01:29]}  O-O-O {[%clk 0:01:10]} 18. Ba3 {[%clk 0:01:29]}  Na5 {[%clk 0:01:08]} 19. Bb4 {[%clk 0:01:08]}  Nc4 {[%clk 0:01:06]} 20. a5 {[%clk 0:01:08]}  b5 {[%clk 0:01:05]} 21. a6 {[%clk 0:01:02]}  Bc6 {[%clk 0:00:30]} 22. Bc5 {[%clk 0:00:44]}  Nd2 {[%clk 0:00:24]} 23. Qe2 {[%clk 0:00:42]}  Nxf1 {[%clk 0:00:24]} 24. Kxf1 {[%clk 0:00:38]}  Kb8 {[%clk 0:00:24]} 25. Bxb5 {[%clk 0:00:35]}  Bxb5 {[%clk 0:00:21]} 26. Qxb5+ {[%clk 0:00:35]}  Ka8 {[%clk 0:00:22]} 27. Qb7+ {[%clk 0:00:12]}  Qxb7 {[%clk 0:00:21]} 28. axb7+ {[%clk 0:00:13]}  Kxb7 {[%clk 0:00:21]} 29. Rxa7+ {[%clk 0:00:14]}  Kc6 {[%clk 0:00:21]} 30. Rxf7 {[%clk 0:00:13]}  Kb5 {[%clk 0:00:15]} 31. Nf4 {[%clk 0:00:12]}  Rge8 {[%clk 0:00:12]} 32. f3 {[%clk 0:00:06]}  Kc4 {[%clk 0:00:11]} 33. g4 {[%clk 0:00:07]}  Nh4 {[%clk 0:00:10]} 34. Kf2 {[%clk 0:00:07]}  Kxc3 {[%clk 0:00:09]} 35. Rxg7 {[%clk 0:00:05]}  Ra8 {[%clk 0:00:08]} 36. Kg3 {[%clk 0:00:06]}  Rac8 {[%clk 0:00:03]} 37. Kxh4 {[%clk 0:00:05]}  Rxc5 {[%clk 0:00:03]} 38. dxc5 {[%clk 0:00:06]}  d4 {[%clk 0:00:04]} 39. Rd7 {[%clk 0:00:07]}  Rf8 {[%clk 0:00:02]} 40. Kg3 {[%clk 0:00:06]}  Rc8 {[%clk 0:00:03]} 41. Nxe6 {[%clk 0:00:05]}  d3 {[%clk 0:00:03]} 42. Nf4 {[%clk 0:00:05]}  d2 {[%clk 0:00:03]} 43. Kf2 {[%clk 0:00:06]}  Rxc5 {[%clk 0:00:03]} 44. Ng2 {[%clk 0:00:02]}  Rxe5 {[%clk 0:00:03]} 45. Ne3 {[%clk 0:00:03]}  Re8 {[%clk 0:00:02]} 46. Ke2 {[%clk 0:00:03]}  h5 {[%clk 0:00:02]} 47. Rd3+ {[%clk 0:00:03]} 1-0


[Site "https://www.chess.com"]

[Event "Early Titled Tuesday Blitz | February 8 2022"]
[White "Tarhan, Adar"]
[Black "Jaferian, Koosha"]
[WhiteFideId "34544712"]
[BlackFideId "12507440"]
[WhiteElo "1802"]
[BlackElo "2027"]
[Result "0-1"]
[Round "06"]
[TimeControl "180+1"]
[Date "2022.02.08"]
[WhiteClock "0:00:13"]
[BlackClock "0:00:07"]

1. e4 {[%clk 0:02:56]}  c6 {[%clk 0:03:00]} 2. Nf3 {[%clk 0:02:51]}  d5 {[%clk 0:03:01]} 3. d3 {[%clk 0:02:48]}  g6 {[%clk 0:02:58]} 4. Nbd2 {[%clk 0:02:39]}  Bg7 {[%clk 0:02:59]} 5. g3 {[%clk 0:02:38]}  e5 {[%clk 0:02:59]} 6. Bg2 {[%clk 0:02:36]}  Ne7 {[%clk 0:02:59]} 7. O-O {[%clk 0:02:34]}  O-O {[%clk 0:03:00]} 8. Re1 {[%clk 0:02:33]}  Qc7 {[%clk 0:03:00]} 9. c3 {[%clk 0:02:27]}  h6 {[%clk 0:02:59]} 10. Qe2 {[%clk 0:02:23]}  Nd7 {[%clk 0:02:56]} 11. d4 {[%clk 0:02:23]}  exd4 {[%clk 0:02:53]} 12. Nxd4 {[%clk 0:02:24]}  Nc5 {[%clk 0:02:36]} 13. exd5 {[%clk 0:02:20]}  Nxd5 {[%clk 0:02:33]} 14. N2b3 {[%clk 0:02:20]}  Ne6 {[%clk 0:02:21]} 15. Nxe6 {[%clk 0:02:13]}  Bxe6 {[%clk 0:02:22]} 16. Bd2 {[%clk 0:02:01]}  Rae8 {[%clk 0:02:21]} 17. Rad1 {[%clk 0:02:00]}  Bd7 {[%clk 0:02:11]} 18. Qd3 {[%clk 0:01:53]}  Bf5 {[%clk 0:02:06]} 19. Qc4 {[%clk 0:01:51]}  Nb6 {[%clk 0:02:03]} 20. Qh4 {[%clk 0:01:47]}  h5 {[%clk 0:01:55]} 21. Bf4 {[%clk 0:01:45]}  Qc8 {[%clk 0:01:50]} 22. Bd6 {[%clk 0:01:36]}  Rxe1+ {[%clk 0:01:50]} 23. Rxe1 {[%clk 0:01:36]}  Re8 {[%clk 0:01:50]} 24. Rxe8+ {[%clk 0:01:32]}  Qxe8 {[%clk 0:01:51]} 25. Qe7 {[%clk 0:01:32]}  Qxe7 {[%clk 0:01:49]} 26. Bxe7 {[%clk 0:01:32]}  Nc4 {[%clk 0:01:49]} 27. Nc5 {[%clk 0:01:33]}  b6 {[%clk 0:01:43]} 28. b3 {[%clk 0:01:26]}  Nd2 {[%clk 0:01:13]} 29. Nb7 {[%clk 0:01:11]}  c5 {[%clk 0:01:06]} 30. c4 {[%clk 0:01:09]}  Bb1 {[%clk 0:01:06]} 31. Bg5 {[%clk 0:01:08]}  Bc3 {[%clk 0:01:02]} 32. Nd6 {[%clk 0:00:57]}  Bxa2 {[%clk 0:00:50]} 33. Bd5 {[%clk 0:00:46]}  Bxb3 {[%clk 0:00:50]} 34. Nxf7 {[%clk 0:00:44]}  Kf8 {[%clk 0:00:41]} 35. Nd6 {[%clk 0:00:43]}  a5 {[%clk 0:00:28]} 36. Bh6+ {[%clk 0:00:42]}  Ke7 {[%clk 0:00:23]} 37. Nc8+ {[%clk 0:00:42]}  Kd8 {[%clk 0:00:19]} 38. Nxb6 {[%clk 0:00:40]}  a4 {[%clk 0:00:20]} 39. Bg5+ {[%clk 0:00:34]}  Kc7 {[%clk 0:00:20]} 40. Na8+ {[%clk 0:00:35]}  Kb8 {[%clk 0:00:18]} 41. Bf4+ {[%clk 0:00:34]}  Ka7 {[%clk 0:00:16]} 42. Nc7 {[%clk 0:00:34]}  Bb4 {[%clk 0:00:06]} 43. Nb5+ {[%clk 0:00:24]}  Kb6 {[%clk 0:00:06]} 44. Bc7+ {[%clk 0:00:22]}  Ka6 {[%clk 0:00:07]} 45. Be6 {[%clk 0:00:19]}  Bxc4 {[%clk 0:00:06]} 46. Bxc4 {[%clk 0:00:16]}  Nxc4 {[%clk 0:00:06]} 47. Nd6 {[%clk 0:00:15]}  Nxd6 {[%clk 0:00:06]} 48. Bxd6 {[%clk 0:00:16]}  a3 {[%clk 0:00:07]} 49. Be5 {[%clk 0:00:17]}  Kb5 {[%clk 0:00:06]} 50. Kf1 {[%clk 0:00:16]}  Kc4 {[%clk 0:00:07]} 51. Ke2 {[%clk 0:00:16]}  Bc3 {[%clk 0:00:07]} 52. Bf4 {[%clk 0:00:13]}  a2 {[%clk 0:00:07]} 0-1


[Site "https://www.chess.com"]